[Event "*** SCC Grand Prix: Titled Tuesday Blitz"]
[Site "Chess.com"]
[Date "2020.08.04"]
[Round "10"]
[White "Manukyan_Artak"]
[Black "diablanni"]
[Result "0-1"]
[WhiteElo "2428"]
[BlackElo "2334"]
[TimeControl "180+1"]
[EndTime "15:38:22 PDT"]
[Termination "diablanni won on time"]

1. e4 {[%clk 0:03:00.9]} 1... c5 {[%clk 0:02:59.7]} 2. Nf3 {[%clk 0:02:59.7]}
2... Nc6 {[%clk 0:02:59.4]} 3. c3 {[%clk 0:02:59.9]} 3... Nf6 {[%clk 0:02:58.6]}
4. e5 {[%clk 0:03:00.2]} 4... Nd5 {[%clk 0:02:57.8]} 5. d4 {[%clk 0:03:01.1]}
5... cxd4 {[%clk 0:02:55]} 6. cxd4 {[%clk 0:03:02]} 6... e6 {[%clk 0:02:48.6]}
7. Nc3 {[%clk 0:03:02.9]} 7... Nxc3 {[%clk 0:02:47.7]} 8. bxc3 {[%clk
0:03:03.8]} 8... d6 {[%clk 0:02:47.3]} 9. Bd3 {[%clk 0:03:02.9]} 9... dxe5
{[%clk 0:02:43.9]} 10. dxe5 {[%clk 0:03:02.2]} 10... Qa5 {[%clk 0:02:43.6]} 11.
O-O {[%clk 0:03:01.7]} 11... Nxe5 {[%clk 0:02:38.2]} 12. Nxe5 {[%clk 0:02:59.4]}
12... Qxe5 {[%clk 0:02:38.2]} 13. Re1 {[%clk 0:03:00.1]} 13... Qa5 {[%clk
0:02:23.1]} 14. Rb1 {[%clk 0:02:52.1]} 14... a6 {[%clk 0:02:20]} 15. Be4 {[%clk
0:02:44.9]} 15... Qc7 {[%clk 0:02:05.2]} 16. Qf3 {[%clk 0:02:37.7]} 16... Bd6
{[%clk 0:02:03]} 17. Bxb7 {[%clk 0:02:34]} 17... Rb8 {[%clk 0:01:41.3]} 18. Bc6+
{[%clk 0:02:32.2]} 18... Ke7 {[%clk 0:01:39.8]} 19. Rxb8 {[%clk 0:02:20.4]}
19... Qxb8 {[%clk 0:01:39.7]} 20. h4 {[%clk 0:01:58.9]} 20... Qc7 {[%clk
0:01:26.2]} 21. h5 {[%clk 0:01:50.5]} 21... f6 {[%clk 0:01:06.3]} 22. h6 {[%clk
0:01:45]} 22... g6 {[%clk 0:01:05.8]} 23. c4 {[%clk 0:01:29.3]} 23... Be5 {[%clk
0:00:26.3]} 24. Ba3+ {[%clk 0:01:19.6]} 24... Kf7 {[%clk 0:00:26]} 25. g4 {[%clk
0:01:00.5]} 25... Rd8 {[%clk 0:00:24.4]} 26. g5 {[%clk 0:00:54.4]} 26... Qa5
{[%clk 0:00:24]} 27. Rb1 {[%clk 0:00:32.6]} 27... f5 {[%clk 0:00:23.8]} 28. Kg2
{[%clk 0:00:22.3]} 28... Qd2 {[%clk 0:00:21.1]} 29. Bc1 {[%clk 0:00:18.9]} 29...
Qd3 {[%clk 0:00:20.2]} 30. Qxd3 {[%clk 0:00:16.2]} 30... Rxd3 {[%clk 0:00:21.1]}
31. Be3 {[%clk 0:00:16.8]} 31... f4 {[%clk 0:00:20.4]} 32. Bb6 {[%clk
0:00:16.7]} 32... Rc3 {[%clk 0:00:18.8]} 33. c5 {[%clk 0:00:16.4]} 33... Bd4
{[%clk 0:00:18.6]} 34. Rd1 {[%clk 0:00:12.4]} 34... Bxc5 {[%clk 0:00:18.7]} 35.
Ba5 {[%clk 0:00:12.3]} 35... Rc2 {[%clk 0:00:17.5]} 36. a4 {[%clk 0:00:10.5]}
36... Rxf2+ {[%clk 0:00:17]} 37. Kh1 {[%clk 0:00:08.7]} 37... f3 {[%clk
0:00:15.9]} 38. Bc7 {[%clk 0:00:07.4]} 38... Rc2 {[%clk 0:00:15.1]} 39. Bxf3
{[%clk 0:00:05.8]} 39... Be3 {[%clk 0:00:14.2]} 40. Bd8 {[%clk 0:00:04.9]} 40...
Rf2 {[%clk 0:00:12.6]} 41. Bc6 {[%clk 0:00:03.2]} 41... Bf4 {[%clk 0:00:12.6]}
42. Bf6 {[%clk 0:00:02.9]} 42... Rh2+ {[%clk 0:00:12.3]} 43. Kg1 {[%clk
0:00:02.7]} 43... Rc2 {[%clk 0:00:12.6]} 44. Bd7 {[%clk 0:00:02.4]} 44... Be3+
{[%clk 0:00:12.8]} 45. Kh1 {[%clk 0:00:01.4]} 45... Bb7+ {[%clk 0:00:13.1]} 0-1

[Event "*** SCC Grand Prix: Titled Tuesday Blitz"]
[Site "Chess.com"]
[Date "2020.08.04"]
[Round "10"]
[White "ailime26"]
[Black "g2_g3"]
[Result "0-1"]
[WhiteElo "1888"]
[BlackElo "2036"]
[TimeControl "180+1"]
[EndTime "15:38:25 PDT"]
[Termination "g2_g3 won by checkmate"]

1. e4 {[%clk 0:03:00.9]} 1... c5 {[%clk 0:02:58]} 2. Nf3 {[%clk 0:02:59]} 2...
Nc6 {[%clk 0:02:58.2]} 3. d4 {[%clk 0:02:57.7]} 3... cxd4 {[%clk 0:02:58]} 4.
Nxd4 {[%clk 0:02:57.8]} 4... Nf6 {[%clk 0:02:58.5]} 5. Nc3 {[%clk 0:02:57.9]}
5... e5 {[%clk 0:02:58.7]} 6. Ndb5 {[%clk 0:02:56.8]} 6... d6 {[%clk 0:02:58.8]}
7. f3 {[%clk 0:02:52.9]} 7... a6 {[%clk 0:02:55.3]} 8. Na3 {[%clk 0:02:49.4]}
8... Be7 {[%clk 0:02:54.8]} 9. Be3 {[%clk 0:02:46.8]} 9... O-O {[%clk 0:02:50]}
10. Qd2 {[%clk 0:02:33.5]} 10... b5 {[%clk 0:02:49.1]} 11. Nd5 {[%clk
0:02:32.8]} 11... Nxd5 {[%clk 0:02:33.3]} 12. exd5 {[%clk 0:02:21]} 12... Nd4
{[%clk 0:02:32.5]} 13. Bxd4 {[%clk 0:02:02]} 13... exd4 {[%clk 0:02:31.8]} 14.
O-O-O {[%clk 0:01:56]} 14... Bf5 {[%clk 0:01:58.8]} 15. Kb1 {[%clk 0:01:46.8]}
15... Rc8 {[%clk 0:01:49.9]} 16. g4 {[%clk 0:01:41.9]} 16... Bg6 {[%clk
0:01:40.8]} 17. f4 {[%clk 0:01:38.4]} 17... Be4 {[%clk 0:01:37.6]} 18. Bg2
{[%clk 0:01:31.2]} 18... Bxg2 {[%clk 0:01:19.3]} 19. Qxg2 {[%clk 0:01:29.3]}
19... b4 {[%clk 0:01:18.7]} 20. Nc4 {[%clk 0:01:04.3]} 20... Rxc4 {[%clk
0:01:16.5]} 21. Qe2 {[%clk 0:01:03.9]} 21... Qc7 {[%clk 0:01:05.3]} 22. g5
{[%clk 0:00:59.4]} 22... Rc8 {[%clk 0:01:01.2]} 23. Rd2 {[%clk 0:00:54]} 23...
Bf8 {[%clk 0:00:48.2]} 24. f5 {[%clk 0:00:49.7]} 24... a5 {[%clk 0:00:47]} 25.
h4 {[%clk 0:00:46]} 25... a4 {[%clk 0:00:46.7]} 26. b3 {[%clk 0:00:19.3]} 26...
axb3 {[%clk 0:00:46]} 27. axb3 {[%clk 0:00:17.4]} 27... Rc3 {[%clk 0:00:43.2]}
28. Kb2 {[%clk 0:00:16.4]} 28... Ra8 {[%clk 0:00:34.9]} 29. Ra1 {[%clk
0:00:16.4]} 29... Rxa1 {[%clk 0:00:33.2]} 30. Kxa1 {[%clk 0:00:16.6]} 30... Qa5+
{[%clk 0:00:32.1]} 31. Kb1 {[%clk 0:00:16.4]} 31... Qxd5 {[%clk 0:00:30.1]} 32.
g6 {[%clk 0:00:13.2]} 32... hxg6 {[%clk 0:00:27.1]} 33. fxg6 {[%clk 0:00:13]}
33... fxg6 {[%clk 0:00:24.4]} 34. Qg4 {[%clk 0:00:12.6]} 34... d3 {[%clk
0:00:20.8]} 35. Qxg6 {[%clk 0:00:08]} 35... dxc2+ {[%clk 0:00:19.4]} 36. Rxc2
{[%clk 0:00:05.8]} 36... Qxb3+ {[%clk 0:00:17.5]} 37. Kc1 {[%clk 0:00:04.7]}
37... Qxc2+ {[%clk 0:00:17.4]} 38. Qxc2 {[%clk 0:00:04.5]} 38... Rxc2+ {[%clk
0:00:18.2]} 39. Kxc2 {[%clk 0:00:05.3]} 39... d5 {[%clk 0:00:18]} 40. Kb3 {[%clk
0:00:05.5]} 40... Kf7 {[%clk 0:00:18.5]} 41. Kc2 {[%clk 0:00:04.7]} 41... Ke6
{[%clk 0:00:19.4]} 42. Kd3 {[%clk 0:00:05.6]} 42... Ke5 {[%clk 0:00:18.3]} 43.
Ke3 {[%clk 0:00:05.8]} 43... d4+ {[%clk 0:00:18.6]} 44. Kd3 {[%clk 0:00:06.1]}
44... Kd5 {[%clk 0:00:19.5]} 45. h5 {[%clk 0:00:05.3]} 45... b3 {[%clk
0:00:19.9]} 46. Kd2 {[%clk 0:00:05.2]} 46... Bb4+ {[%clk 0:00:19.8]} 47. Kc1
{[%clk 0:00:04.6]} 47... Bc3 {[%clk 0:00:19.9]} 48. Kb1 {[%clk 0:00:04.5]} 48...
d3 {[%clk 0:00:20.3]} 49. Kc1 {[%clk 0:00:03.8]} 49... Kd4 {[%clk 0:00:20.5]}
50. h6 {[%clk 0:00:03.5]} 50... gxh6 {[%clk 0:00:20.2]} 51. Kb1 {[%clk
0:00:02.7]} 51... h5 {[%clk 0:00:21.1]} 52. Kc1 {[%clk 0:00:02.1]} 52... h4
{[%clk 0:00:22]} 53. Kb1 {[%clk 0:00:02.6]} 53... h3 {[%clk 0:00:22.9]} 54. Kc1
{[%clk 0:00:03.5]} 54... h2 {[%clk 0:00:23.8]} 55. Kb1 {[%clk 0:00:04.4]} 55...
h1=Q# {[%clk 0:00:24.7]} 0-1

[Event "*** SCC Grand Prix: Titled Tuesday Blitz"]
[Site "Chess.com"]
[Date "2020.08.04"]
[Round "10"]
[White "gisela_roque"]
[Black "spacegirl987"]
[Result "1-0"]
[WhiteElo "1870"]
[BlackElo "1917"]
[TimeControl "180+1"]
[EndTime "15:38:28 PDT"]
[Termination "gisela_roque won by checkmate"]

1. c4 {[%clk 0:03:00.9]} 1... e5 {[%clk 0:02:57.3]} 2. Nc3 {[%clk 0:02:59.6]}
2... Nc6 {[%clk 0:02:56.4]} 3. Nf3 {[%clk 0:02:59]} 3... g6 {[%clk 0:02:55.1]}
4. g3 {[%clk 0:02:57.1]} 4... Bg7 {[%clk 0:02:55.5]} 5. Bg2 {[%clk 0:02:56.4]}
5... d6 {[%clk 0:02:55.8]} 6. d3 {[%clk 0:02:53]} 6... Be6 {[%clk 0:02:55.6]} 7.
Rb1 {[%clk 0:02:51.1]} 7... h6 {[%clk 0:02:51.7]} 8. Bd2 {[%clk 0:02:37.9]} 8...
Qd7 {[%clk 0:02:50.2]} 9. O-O {[%clk 0:02:29.5]} 9... Nf6 {[%clk 0:02:47.7]} 10.
b4 {[%clk 0:02:27.3]} 10... Bh3 {[%clk 0:02:46.4]} 11. b5 {[%clk 0:02:26.8]}
11... Ne7 {[%clk 0:02:34.3]} 12. c5 {[%clk 0:02:10.8]} 12... Bxg2 {[%clk
0:02:19.4]} 13. Kxg2 {[%clk 0:02:11.7]} 13... Nf5 {[%clk 0:02:16.2]} 14. Ne4
{[%clk 0:01:41.4]} 14... O-O {[%clk 0:01:56.5]} 15. Nxf6+ {[%clk 0:01:38.3]}
15... Bxf6 {[%clk 0:01:56]} 16. e4 {[%clk 0:01:27.8]} 16... Nd4 {[%clk
0:01:48.1]} 17. Nxd4 {[%clk 0:01:27.2]} 17... exd4 {[%clk 0:01:47.3]} 18. cxd6
{[%clk 0:01:24.7]} 18... Qxd6 {[%clk 0:01:30.8]} 19. Bb4 {[%clk 0:01:23.7]}
19... Qb6 {[%clk 0:01:17.4]} 20. Bxf8 {[%clk 0:01:22.6]} 20... Rxf8 {[%clk
0:01:17.9]} 21. a4 {[%clk 0:01:19.9]} 21... Qe6 {[%clk 0:01:14.7]} 22. Qc2
{[%clk 0:01:13.5]} 22... Rc8 {[%clk 0:01:12.4]} 23. f4 {[%clk 0:01:01.3]} 23...
Qg4 {[%clk 0:01:07.5]} 24. h3 {[%clk 0:00:55.8]} 24... Qd7 {[%clk 0:01:04.6]}
25. f5 {[%clk 0:00:51.9]} 25... Be5 {[%clk 0:01:01.3]} 26. fxg6 {[%clk
0:00:49.6]} 26... f6 {[%clk 0:00:54.8]} 27. Qc4+ {[%clk 0:00:43.4]} 27... Kg7
{[%clk 0:00:54.8]} 28. Qf7+ {[%clk 0:00:38.1]} 28... Qxf7 {[%clk 0:00:53.9]} 29.
gxf7 {[%clk 0:00:38.1]} 29... Kxf7 {[%clk 0:00:54.8]} 30. Rbc1 {[%clk 0:00:26]}
30... Ke6 {[%clk 0:00:54.3]} 31. Rc4 {[%clk 0:00:24.9]} 31... Rg8 {[%clk
0:00:48.5]} 32. g4 {[%clk 0:00:24.9]} 32... h5 {[%clk 0:00:47.1]} 33. Kf3 {[%clk
0:00:25]} 33... hxg4+ {[%clk 0:00:46.3]} 34. hxg4 {[%clk 0:00:24.2]} 34... Rh8
{[%clk 0:00:46.8]} 35. Rfc1 {[%clk 0:00:20.2]} 35... Rh3+ {[%clk 0:00:44.9]} 36.
Kf2 {[%clk 0:00:20.3]} 36... Rxd3 {[%clk 0:00:44.2]} 37. Rc5 {[%clk 0:00:15.1]}
37... Bg3+ {[%clk 0:00:35]} 38. Kg2 {[%clk 0:00:15]} 38... Bd6 {[%clk
0:00:32.7]} 39. Rd5 {[%clk 0:00:13.7]} 39... Rd2+ {[%clk 0:00:28.3]} 40. Kf3
{[%clk 0:00:13.1]} 40... d3 {[%clk 0:00:20.5]} 41. Ke3 {[%clk 0:00:12]} 41...
Rh2 {[%clk 0:00:16.5]} 42. Kxd3 {[%clk 0:00:11.2]} 42... Rh3+ {[%clk 0:00:16.1]}
43. Ke2 {[%clk 0:00:10.6]} 43... Rg3 {[%clk 0:00:16.1]} 44. Rf1 {[%clk
0:00:09.3]} 44... Rxg4 {[%clk 0:00:15.4]} 45. Rdf5 {[%clk 0:00:08.5]} 45...
Rxe4+ {[%clk 0:00:14.9]} 46. Kd3 {[%clk 0:00:08.6]} 46... Be5 {[%clk 0:00:15.1]}
47. Kxe4 {[%clk 0:00:08.1]} 47... b6 {[%clk 0:00:15.2]} 48. Rxe5+ {[%clk
0:00:08]} 48... fxe5 {[%clk 0:00:14.9]} 49. Rf5 {[%clk 0:00:08.5]} 49... Kd6
{[%clk 0:00:14.2]} 50. Rxe5 {[%clk 0:00:08.8]} 50... Kd7 {[%clk 0:00:15.1]} 51.
Kd5 {[%clk 0:00:08.7]} 51... Kc8 {[%clk 0:00:16]} 52. Kc6 {[%clk 0:00:08.3]}
52... a5 {[%clk 0:00:15.4]} 53. Re8# {[%clk 0:00:08.1]} 1-0

[Event "*** SCC Grand Prix: Titled Tuesday Blitz"]
[Site "Chess.com"]
[Date "2020.08.04"]
[Round "10"]
[White "Nara_Kh"]
[Black "harkerchess"]
[Result "1/2-1/2"]
[WhiteElo "2314"]
[BlackElo "2134"]
[TimeControl "180+1"]
[EndTime "15:38:36 PDT"]
[Termination "Game drawn - insufficient material"]

1. e4 {[%clk 0:03:00.9]} 1... c6 {[%clk 0:03:00]} 2. d4 {[%clk 0:02:59.7]} 2...
d5 {[%clk 0:02:59.1]} 3. Nc3 {[%clk 0:02:59.7]} 3... dxe4 {[%clk 0:02:56.3]} 4.
Nxe4 {[%clk 0:02:59.6]} 4... Nf6 {[%clk 0:02:56.9]} 5. Ng3 {[%clk 0:02:57.7]}
5... g6 {[%clk 0:02:40]} 6. Nf3 {[%clk 0:02:53.3]} 6... Bg7 {[%clk 0:02:38.6]}
7. Bg5 {[%clk 0:02:50.9]} 7... O-O {[%clk 0:02:33.8]} 8. Qd2 {[%clk 0:02:49.9]}
8... Nbd7 {[%clk 0:02:32.5]} 9. O-O-O {[%clk 0:02:49.2]} 9... Qc7 {[%clk
0:02:29.4]} 10. h4 {[%clk 0:02:35.1]} 10... e5 {[%clk 0:02:10.6]} 11. h5 {[%clk
0:02:14.1]} 11... exd4 {[%clk 0:02:03.3]} 12. Nxd4 {[%clk 0:02:05.4]} 12... Nb6
{[%clk 0:01:47.7]} 13. Bh6 {[%clk 0:01:49.4]} 13... Bg4 {[%clk 0:01:34]} 14.
hxg6 {[%clk 0:01:36.4]} 14... fxg6 {[%clk 0:01:32.1]} 15. Bxg7 {[%clk
0:01:24.2]} 15... Qxg7 {[%clk 0:01:19]} 16. f3 {[%clk 0:01:23.5]} 16... Bd7
{[%clk 0:01:17.6]} 17. Qg5 {[%clk 0:01:13.6]} 17... Rfe8 {[%clk 0:01:07.5]} 18.
Bd3 {[%clk 0:00:59.9]} 18... Nfd5 {[%clk 0:00:58]} 19. c3 {[%clk 0:00:18.5]}
19... Ne3 {[%clk 0:00:54.7]} 20. Rdg1 {[%clk 0:00:12.2]} 20... Nbc4 {[%clk
0:00:52.7]} 21. Ne4 {[%clk 0:00:11.4]} 21... Re5 {[%clk 0:00:42.4]} 22. Nf6+
{[%clk 0:00:07.3]} 22... Kf7 {[%clk 0:00:41.3]} 23. Qh4 {[%clk 0:00:05.2]} 23...
Qxf6 {[%clk 0:00:37.7]} 24. Qxh7+ {[%clk 0:00:05]} 24... Qg7 {[%clk 0:00:37.9]}
25. Bxg6+ {[%clk 0:00:05.2]} 25... Kf6 {[%clk 0:00:30.7]} 26. Qxg7+ {[%clk
0:00:05.3]} 26... Kxg7 {[%clk 0:00:30.6]} 27. Rh7+ {[%clk 0:00:06]} 27... Kxg6
{[%clk 0:00:31.1]} 28. Rxd7 {[%clk 0:00:06.7]} 28... Rb8 {[%clk 0:00:21.7]} 29.
b3 {[%clk 0:00:05.8]} 29... Nb6 {[%clk 0:00:21]} 30. Rd6+ {[%clk 0:00:06.1]}
30... Kg5 {[%clk 0:00:20.7]} 31. Kd2 {[%clk 0:00:05.9]} 31... Nf5 {[%clk
0:00:17.9]} 32. Nxf5 {[%clk 0:00:06.1]} 32... Rxf5 {[%clk 0:00:18.8]} 33. c4
{[%clk 0:00:06.9]} 33... Kf4 {[%clk 0:00:18.9]} 34. Rd4+ {[%clk 0:00:05.8]}
34... Kg3 {[%clk 0:00:18.3]} 35. Rg4+ {[%clk 0:00:05.2]} 35... Kf2 {[%clk
0:00:18.7]} 36. Rh1 {[%clk 0:00:04.8]} 36... Rd8+ {[%clk 0:00:18.5]} 37. Kc3
{[%clk 0:00:05.2]} 37... Re5 {[%clk 0:00:18.2]} 38. Rh7 {[%clk 0:00:05]} 38...
Re3+ {[%clk 0:00:18]} 39. Kb4 {[%clk 0:00:05.1]} 39... Nd7 {[%clk 0:00:17.2]}
40. Rgg7 {[%clk 0:00:04.3]} 40... Ne5 {[%clk 0:00:14.5]} 41. Rxb7 {[%clk
0:00:03.8]} 41... Kxg2 {[%clk 0:00:13.9]} 42. Rhg7+ {[%clk 0:00:03.4]} 42...
Kxf3 {[%clk 0:00:13.8]} 43. Rxa7 {[%clk 0:00:03.7]} 43... Nd3+ {[%clk
0:00:13.8]} 44. Ka5 {[%clk 0:00:03.6]} 44... Nc1 {[%clk 0:00:14]} 45. Raf7+
{[%clk 0:00:03.7]} 45... Ke2 {[%clk 0:00:13.8]} 46. b4 {[%clk 0:00:04]} 46...
Nxa2 {[%clk 0:00:12.9]} 47. b5 {[%clk 0:00:04.3]} 47... cxb5 {[%clk 0:00:12.5]}
48. cxb5 {[%clk 0:00:04.5]} 48... Ra3+ {[%clk 0:00:12.6]} 49. Kb6 {[%clk
0:00:04.8]} 49... Rb8+ {[%clk 0:00:12.7]} 50. Rb7 {[%clk 0:00:05.4]} 50... Rxb7+
{[%clk 0:00:12.1]} 51. Rxb7 {[%clk 0:00:05.7]} 51... Nc3 {[%clk 0:00:12.4]} 52.
Re7+ {[%clk 0:00:05.7]} 52... Kd3 {[%clk 0:00:12.2]} 53. Kc5 {[%clk 0:00:05.9]}
53... Rb3 {[%clk 0:00:11.8]} 54. Rd7+ {[%clk 0:00:05.9]} 54... Kc2 {[%clk
0:00:11]} 55. Rb7 {[%clk 0:00:06]} 55... Nxb5 {[%clk 0:00:09.6]} 56. Rxb5 {[%clk
0:00:05.6]} 56... Rxb5+ {[%clk 0:00:10.5]} 57. Kxb5 {[%clk 0:00:06.1]} 1/2-1/2

[Event "*** SCC Grand Prix: Titled Tuesday Blitz"]
[Site "Chess.com"]
[Date "2020.08.04"]
[Round "10"]
[White "DanielRensch"]
[Black "Robert_Chessmood"]
[Result "0-1"]
[WhiteElo "2553"]
[BlackElo "2932"]
[TimeControl "180+1"]
[EndTime "15:38:37 PDT"]
[Termination "Robert_Chessmood won on time"]

1. e4 {[%clk 0:03:00.9]} 1... e5 {[%clk 0:02:59.9]} 2. Nf3 {[%clk 0:03:00.7]}
2... Nc6 {[%clk 0:03:00.4]} 3. d4 {[%clk 0:02:54.1]} 3... exd4 {[%clk
0:03:00.3]} 4. Nxd4 {[%clk 0:02:53.9]} 4... Bc5 {[%clk 0:03:00.4]} 5. Nb3 {[%clk
0:02:53.2]} 5... Bb6 {[%clk 0:02:59]} 6. Nc3 {[%clk 0:02:52.7]} 6... d6 {[%clk
0:02:59.6]} 7. Nd5 {[%clk 0:02:52]} 7... Nf6 {[%clk 0:02:56.5]} 8. Nxb6 {[%clk
0:02:50.5]} 8... axb6 {[%clk 0:02:56.1]} 9. Bd3 {[%clk 0:02:51.1]} 9... O-O
{[%clk 0:02:41.9]} 10. O-O {[%clk 0:02:50.4]} 10... Re8 {[%clk 0:02:41]} 11. Re1
{[%clk 0:02:40.1]} 11... Ne5 {[%clk 0:02:37.4]} 12. Bf1 {[%clk 0:02:36.7]} 12...
Ng6 {[%clk 0:02:28.2]} 13. f3 {[%clk 0:02:26.4]} 13... d5 {[%clk 0:02:20]} 14.
Bg5 {[%clk 0:02:25.1]} 14... dxe4 {[%clk 0:02:15.5]} 15. Qxd8 {[%clk 0:02:23.6]}
15... Rxd8 {[%clk 0:02:16.4]} 16. Bxf6 {[%clk 0:02:23.8]} 16... gxf6 {[%clk
0:02:17.3]} 17. Rxe4 {[%clk 0:02:23.4]} 17... Bf5 {[%clk 0:02:12.9]} 18. Re2
{[%clk 0:02:21.7]} 18... c5 {[%clk 0:02:02.5]} 19. Rf2 {[%clk 0:02:06.6]} 19...
Rd6 {[%clk 0:01:48]} 20. Nd2 {[%clk 0:01:44.1]} 20... Ne5 {[%clk 0:01:39]} 21.
Nc4 {[%clk 0:01:06.3]} 21... Nxc4 {[%clk 0:01:38.5]} 22. Bxc4 {[%clk 0:01:07.2]}
22... Rd4 {[%clk 0:01:21.5]} 23. b3 {[%clk 0:01:00.6]} 23... Rad8 {[%clk
0:01:14.2]} 24. g4 {[%clk 0:00:58.5]} 24... Bg6 {[%clk 0:01:08]} 25. Re1 {[%clk
0:00:48.2]} 25... Kg7 {[%clk 0:00:53.5]} 26. a4 {[%clk 0:00:33.8]} 26... h5
{[%clk 0:00:48.6]} 27. h3 {[%clk 0:00:33.4]} 27... hxg4 {[%clk 0:00:47.8]} 28.
hxg4 {[%clk 0:00:33.1]} 28... Rd1 {[%clk 0:00:43.9]} 29. Kf1 {[%clk 0:00:27.6]}
29... R8d2 {[%clk 0:00:40.4]} 30. c3 {[%clk 0:00:20.5]} 30... Bd3+ {[%clk
0:00:23.1]} 31. Bxd3 {[%clk 0:00:19]} 31... Rxe1+ {[%clk 0:00:23.4]} 32. Kxe1
{[%clk 0:00:18.9]} 32... Rxd3 {[%clk 0:00:24.3]} 33. Rd2 {[%clk 0:00:05.5]}
33... Rxc3 {[%clk 0:00:22.8]} 34. Rd7 {[%clk 0:00:04.8]} 34... Rxf3 {[%clk
0:00:20]} 35. Rxb7 {[%clk 0:00:04.5]} 35... Rxb3 {[%clk 0:00:20.5]} 36. a5
{[%clk 0:00:05]} 36... b5 {[%clk 0:00:21]} 37. a6 {[%clk 0:00:05.2]} 37... b4
{[%clk 0:00:20]} 38. Rb5 {[%clk 0:00:05]} 38... Ra3 {[%clk 0:00:19.8]} 39. Rxc5
{[%clk 0:00:04.9]} 39... Rxa6 {[%clk 0:00:20]} 40. Rb5 {[%clk 0:00:05.4]} 40...
Ra1+ {[%clk 0:00:19.9]} 41. Kf2 {[%clk 0:00:05.6]} 41... Rb1 {[%clk 0:00:20.1]}
42. Kf3 {[%clk 0:00:05.7]} 42... b3 {[%clk 0:00:20.1]} 43. Rb7 {[%clk
0:00:03.8]} 43... Kg6 {[%clk 0:00:19.2]} 44. Kg3 {[%clk 0:00:03.8]} 44... b2
{[%clk 0:00:18.3]} 45. Kg2 {[%clk 0:00:03.7]} 45... Kg5 {[%clk 0:00:18.7]} 46.
Rb4 {[%clk 0:00:04]} 46... f5 {[%clk 0:00:19]} 47. gxf5 {[%clk 0:00:04.2]} 47...
Kxf5 {[%clk 0:00:19.9]} 48. Kh2 {[%clk 0:00:04]} 48... Kg5 {[%clk 0:00:20.1]}
49. Rb5+ {[%clk 0:00:03.8]} 49... f5 {[%clk 0:00:20.2]} 50. Kg2 {[%clk
0:00:04.7]} 50... Kg6 {[%clk 0:00:20.4]} 51. Rb6+ {[%clk 0:00:04.9]} 51... Kf7
{[%clk 0:00:20.6]} 52. Rb3 {[%clk 0:00:05.8]} 52... f4 {[%clk 0:00:20]} 53. Kh2
{[%clk 0:00:06.2]} 53... Ke7 {[%clk 0:00:19.6]} 54. Kg2 {[%clk 0:00:06.1]} 54...
f3+ {[%clk 0:00:18.5]} 55. Kf2 {[%clk 0:00:05.7]} 55... Rh1 {[%clk 0:00:18]} 56.
Rxb2 {[%clk 0:00:06.1]} 56... Rh2+ {[%clk 0:00:18.2]} 57. Kxf3 {[%clk
0:00:06.6]} 57... Rxb2 {[%clk 0:00:19]} 0-1

[Event "*** SCC Grand Prix: Titled Tuesday Blitz"]
[Site "Chess.com"]
[Date "2020.08.04"]
[Round "10"]
[White "wild_cat99"]
[Black "Lion-Al-Messi"]
[Result "0-1"]
[WhiteElo "2641"]
[BlackElo "2499"]
[TimeControl "180+1"]
[EndTime "15:38:38 PDT"]
[Termination "Lion-Al-Messi won on time"]

1. Nf3 {[%clk 0:03:00.6]} 1... d5 {[%clk 0:02:58.4]} 2. e3 {[%clk 0:03:00.5]}
2... Nc6 {[%clk 0:02:55.9]} 3. c4 {[%clk 0:02:59.6]} 3... d4 {[%clk 0:02:55.4]}
4. b4 {[%clk 0:02:52.3]} 4... dxe3 {[%clk 0:02:55.6]} 5. fxe3 {[%clk 0:02:51.8]}
5... Nxb4 {[%clk 0:02:56.2]} 6. d4 {[%clk 0:02:49.7]} 6... e6 {[%clk 0:02:55.3]}
7. Nc3 {[%clk 0:02:45]} 7... Ne7 {[%clk 0:02:46.1]} 8. Ba3 {[%clk 0:02:44.2]}
8... a5 {[%clk 0:02:42.2]} 9. Be2 {[%clk 0:02:43.4]} 9... Ng6 {[%clk 0:02:41.7]}
10. O-O {[%clk 0:02:39.3]} 10... Be7 {[%clk 0:02:41.7]} 11. e4 {[%clk
0:02:29.2]} 11... O-O {[%clk 0:02:41.6]} 12. Qd2 {[%clk 0:02:25.1]} 12... c5
{[%clk 0:02:41.1]} 13. d5 {[%clk 0:02:24.8]} 13... exd5 {[%clk 0:02:41.4]} 14.
cxd5 {[%clk 0:02:23.6]} 14... Bg4 {[%clk 0:02:40.7]} 15. Rad1 {[%clk 0:02:17.3]}
15... Bf6 {[%clk 0:02:39.8]} 16. Nb5 {[%clk 0:02:01.7]} 16... Qb6 {[%clk
0:02:37.8]} 17. Kh1 {[%clk 0:01:38.2]} 17... Rae8 {[%clk 0:02:36.3]} 18. Bxb4
{[%clk 0:01:07.4]} 18... axb4 {[%clk 0:02:35.7]} 19. Qc2 {[%clk 0:00:57.5]}
19... h5 {[%clk 0:02:34.1]} 20. h3 {[%clk 0:00:48.9]} 20... Bd7 {[%clk
0:02:32.1]} 21. a4 {[%clk 0:00:45.5]} 21... Nf4 {[%clk 0:02:28]} 22. Bc4 {[%clk
0:00:42.2]} 22... Nxh3 {[%clk 0:02:25.5]} 23. gxh3 {[%clk 0:00:38.9]} 23... Bxh3
{[%clk 0:02:26.4]} 24. Rf2 {[%clk 0:00:35.4]} 24... Bg4 {[%clk 0:02:26.5]} 25.
Rdf1 {[%clk 0:00:34]} 25... Qd8 {[%clk 0:02:24]} 26. d6 {[%clk 0:00:32.9]} 26...
Bh4 {[%clk 0:02:23]} 27. Rg2 {[%clk 0:00:28.2]} 27... Bh3 {[%clk 0:02:08.4]} 28.
Rfg1 {[%clk 0:00:24.2]} 28... Bxg2+ {[%clk 0:02:07.8]} 29. Rxg2 {[%clk
0:00:25.1]} 29... Qf6 {[%clk 0:01:56.1]} 30. Qd3 {[%clk 0:00:24.2]} 30... Qf4
{[%clk 0:01:42.8]} 31. e5 {[%clk 0:00:23]} 31... Kh8 {[%clk 0:01:29.3]} 32. Nc7
{[%clk 0:00:18.4]} 32... Rxe5 {[%clk 0:01:23.6]} 33. Nxe5 {[%clk 0:00:19.3]}
33... Qxe5 {[%clk 0:01:23.9]} 34. Re2 {[%clk 0:00:20.1]} 34... Qa1+ {[%clk
0:01:17.6]} 35. Kg2 {[%clk 0:00:19.3]} 35... Qf6 {[%clk 0:01:04.4]} 36. Qf3
{[%clk 0:00:13.3]} 36... Qg5+ {[%clk 0:01:04.2]} 37. Kh3 {[%clk 0:00:12.7]}
37... Rd8 {[%clk 0:00:45]} 38. Rg2 {[%clk 0:00:12.5]} 38... Qf6 {[%clk
0:00:43.2]} 39. Qxh5+ {[%clk 0:00:11.4]} 39... Kg8 {[%clk 0:00:39.2]} 40. Qxh4
{[%clk 0:00:11.5]} 40... Qxh4+ {[%clk 0:00:39]} 41. Kxh4 {[%clk 0:00:11.4]}
41... Rxd6 {[%clk 0:00:39.9]} 42. Rxg7+ {[%clk 0:00:10.1]} 42... Kh8 {[%clk
0:00:28.8]} 43. Rg4 {[%clk 0:00:05.7]} 43... f5 {[%clk 0:00:24]} 44. Rf4 {[%clk
0:00:05.2]} 44... Rd2 {[%clk 0:00:18.9]} 45. Nd5 {[%clk 0:00:04.8]} 45... Kg7
{[%clk 0:00:16.4]} 46. Ne3 {[%clk 0:00:03.6]} 46... Kf6 {[%clk 0:00:11.8]} 47.
Rxf5+ {[%clk 0:00:03.1]} 47... Ke7 {[%clk 0:00:11.2]} 48. Rf7+ {[%clk
0:00:02.7]} 48... Kd6 {[%clk 0:00:11.6]} 49. Rxb7 {[%clk 0:00:02.2]} 49... Rd4+
{[%clk 0:00:11.7]} 50. Kg3 {[%clk 0:00:01.7]} 50... Re4 {[%clk 0:00:11.6]} 51.
Kf3 {[%clk 0:00:01.6]} 51... Re8 {[%clk 0:00:09.5]} 52. Rb6+ {[%clk 0:00:01.8]}
52... Kc7 {[%clk 0:00:08.9]} 53. Nd5+ {[%clk 0:00:01.9]} 53... Kc8 {[%clk
0:00:08.9]} 54. Bb5 {[%clk 0:00:01.8]} 54... Re5 {[%clk 0:00:08]} 0-1